bitfinex-derivatives/quotes_BTCF0:USTF0_20250207
["timestamp","ask_amount","ask_price","bid_price","bid_amount"]
[1738937696290,0.20077844,99652.0,99651.0,0.3678]
[1738937696791,0.21139045,99652.0,99651.0,0.3678]
[1738937697181,0.01076255,99652.0,99651.0,0.3678]
[1738937697582,0.01076255,99652.0,99651.0,0.5684299]
[1738937698178,0.00015054,99652.0,99651.0,0.5684299]
[1738937699795,0.20077844,99652.0,99651.0,0.5684299]
[1738937700295,0.00015054,99652.0,99651.0,0.5684299]
[1738937701996,0.20077844,99652.0,99651.0,0.3678]
[1738937702387,0.00015054,99652.0,99651.0,0.3678]
[1738937705083,4e-08,99652.0,99651.0,0.42776]
[1738937705288,0.1797311,99684.0,99683.0,0.2005655]
[1738937705489,0.01710272,99700.0,99699.0,0.2005333]
[1738937705691,0.01710272,99700.0,99699.0,0.5613333]
[1738937706391,0.00015046,99709.0,99708.0,0.2005152]
[1738937706592,0.1442,99729.0,99717.0,0.2004971]
[1738937706790,0.1442,99729.0,99718.0,0.3608]
[1738937706990,0.2005112,99710.0,99709.0,0.3608]
[1738937707184,0.3608,99723.0,99709.0,0.3608]
[1738937707393,0.2005104,99712.0,99711.0,0.2005084]
[1738937707694,0.2005031,99716.0,99715.0,0.2005005]
[1738937707995,0.2004977,99717.0,99709.0,0.3608]
[1738937708195,0.2498978,99719.0,99710.0,0.2005112]
[1738937708382,0.2498978,99719.0,99716.0,0.2004975]
[1738937708589,0.2498978,99719.0,99717.0,0.2004968]
[1738937708894,0.01080247,99719.0,99717.0,0.2004968]
[1738937709096,0.00015019,99721.0,99719.0,0.2004931]
[1738937710486,0.00015019,99721.0,99719.0,0.001]
[1738937710983,0.2004911,99720.0,99719.0,0.001]
[1738937711291,0.00015019,99721.0,99719.0,0.001]
[1738937712190,0.00015019,99721.0,99719.0,0.2004922]
[1738937712500,0.00150479,99732.0,99731.0,0.200469]
[1738937712707,0.00150479,99732.0,99731.0,0.561269]
[1738937712998,0.00679033,99740.0,99733.0,0.2004644]
[1738937713195,0.00679033,99740.0,99729.0,0.3608]
[1738937713385,0.00679033,99740.0,99720.0,0.11604667]
[1738937713587,0.00679033,99740.0,99730.0,0.11604667]
[1738937713791,0.00679033,99740.0,99738.0,0.5612545]
[1738937714389,0.2004156,99758.0,99738.0,0.3608]
[1738937714589,0.3097,99776.0,99757.0,0.5612149]
[1738937714787,0.200399,99766.0,99765.0,0.3608]
[1738937714993,0.07901279,99781.0,99765.0,0.3608]
[1738937715194,4.072e-05,99790.0,99784.0,0.2003625]
[1738937715495,0.29597743,99785.0,99784.0,0.2003625]
[1738937715996,1e-08,99785.0,99784.0,0.2003625]
[1738937716197,1e-08,99785.0,99780.0,0.3608]
[1738937716399,0.20036211,99785.0,99780.0,0.3608]
[1738937716602,1e-08,99785.0,99780.0,0.3608]
[1738937716896,1e-08,99785.0,99784.0,0.001]
[1738937717495,0.2003599,99786.0,99784.0,0.001]
[1738937718094,0.2003685,99781.0,99780.0,0.3608]
[1738937718702,0.2003685,99781.0,99780.0,0.3618]
[1738937719298,0.2003685,99781.0,99780.0,0.3608]
[1738937719500,0.2003685,99781.0,99780.0,0.3618]
[1738937725699,0.2003685,99781.0,99780.0,0.7226]
[1738937726803,0.01070001,99790.0,99780.0,0.7226]
[1738937727008,0.01070001,99790.0,99789.0,0.5611525]
[1738937727412,0.21105041,99790.0,99789.0,0.3608]
[1738937728002,0.21205041,99790.0,99789.0,0.3608]
[1738937728410,0.01170001,99790.0,99789.0,0.3608]
[1738937728801,0.01170001,99790.0,99789.0,0.3618]
[1738937729914,0.01170001,99790.0,99789.0,0.5056]
[1738937730311,0.00104072,99790.0,99789.0,0.5056]
[1738937731007,0.0015042,99797.0,99789.0,0.5056]
[1738937731303,0.2003384,99796.0,99795.0,0.3608]
[1738937732715,0.1,99800.0,99795.0,0.3608]
[1738937732913,0.2002911,99820.0,99805.0,0.2003197]
[1738937733108,0.11604667,99820.0,99812.0,0.3608]
[1738937733308,0.2003043,99813.0,99812.0,0.3608]
[1738937733513,0.2903043,99813.0,99812.0,0.3608]
[1738937735110,0.09,99813.0,99812.0,0.3608]
[1738937735415,0.10047339,99813.0,99812.0,0.3608]
[1738937738213,0.1610176,99814.0,99812.0,0.3608]
[1738937740011,0.01060632,99814.0,99812.0,0.3608]
[1738937740218,0.1543,99819.0,99812.0,0.5611053]
[1738937740417,0.1543,99819.0,99818.0,0.3608]
[1738937741206,0.2002785,99826.0,99818.0,0.3608]
[1738937741415,0.2002785,99826.0,99818.0,0.5610942]
[1738937741616,0.13604667,99830.0,99818.0,0.5610942]
[1738937741810,0.02,99830.0,99828.0,0.2002735]
[1738937742112,0.2002732,99829.0,99827.0,0.3608]
[1738937743319,0.2003123,99809.0,99808.0,0.3608]
[1738937743512,0.0500726,99820.0,99808.0,0.3608]
[1738937743513,0.11604667,99820.0,99808.0,0.3608]
[1738937743817,0.03054832,99830.0,99816.0,0.3608]
[1738937744021,0.03054832,99830.0,99827.0,0.3608]
[1738937744320,0.03054832,99830.0,99828.0,0.001]
[1738937744613,0.23081872,99830.0,99828.0,0.001]
[1738937745114,0.03054832,99830.0,99827.0,0.3608]
[1738937745322,0.20033067,99828.0,99827.0,0.3608]
[1738937747117,5.647e-05,99828.0,99827.0,0.3608]
[1738937747617,5.647e-05,99828.0,99827.0,0.5086]
[1738937748514,0.00105647,99828.0,99827.0,0.5096]
[1738937748719,0.01005647,99828.0,99827.0,0.5106]
[1738937749319,0.009,99828.0,99827.0,0.5106]
[1738937749509,0.009,99828.0,99827.0,0.7108762]
[1738937750518,0.01191065,99841.0,99831.0,0.2002673]
[1738937750519,0.2002645,99833.0,99831.0,0.2002673]
[1738937750714,0.2002645,99833.0,99832.0,0.3608]
[1738937751114,0.01191065,99841.0,99832.0,0.3608]
[1738937751318,0.01191065,99841.0,99840.0,0.3608]
[1738937751622,0.21215875,99841.0,99840.0,0.3608]
[1738937752325,0.2002642,99833.0,99832.0,0.3608]
[1738937752713,0.2062642,99833.0,99832.0,0.001]
[1738937752918,0.006,99833.0,99830.0,0.3608]
[1738937753127,0.295,99832.0,99818.0,0.3608]
[1738937753321,0.2002882,99821.0,99818.0,0.3608]
[1738937753622,0.2002746,99828.0,99822.0,0.2002855]
[1738937753820,0.295,99832.0,99822.0,0.2002855]
[1738937754118,0.295,99832.0,99820.0,0.53288307]
[1738937754119,0.5056852,99832.0,99831.0,0.3608]
[1738937754327,0.00014978,99835.0,99831.0,0.3608]
[1738937754328,0.00014978,99835.0,99832.0,0.001]
[1738937754515,0.00014978,99835.0,99834.0,0.3608]
[1738937754717,0.00014978,99835.0,99834.0,0.5610622]
[1738937755222,0.00014978,99835.0,99834.0,0.3608]
[1738937755811,0.20040998,99835.0,99834.0,0.3608]
[1738937756018,0.20040998,99835.0,99834.0,0.3618]
[1738937756423,0.20540998,99835.0,99834.0,0.3618]
[1738937757228,0.20540998,99835.0,99834.0,0.3628]
[1738937758829,0.36330998,99835.0,99834.0,0.3628]
[1738937760631,0.16304978,99835.0,99834.0,0.3628]
[1738937761034,0.36330988,99835.0,99834.0,0.3628]
[1738937761632,0.00514978,99835.0,99834.0,0.3628]
[1738937762835,0.00514978,99835.0,99834.0,0.5630622]
[1738937763426,0.00150337,99841.0,99834.0,0.3628]
[1738937763731,0.00150337,99841.0,99840.0,0.2002502]
[1738937765130,0.1585,99856.0,99835.0,0.1524]
[1738937765131,0.01047908,99849.0,99835.0,0.1524]
[1738937765328,0.2002268,99852.0,99848.0,0.3608]
[1738937765528,0.2002268,99852.0,99850.0,0.3608]
[1738937765926,0.01078993,99856.0,99850.0,0.5610285]
[1738937766134,0.2002093,99861.0,99850.0,0.3608]
[1738937766332,0.2002093,99861.0,99860.0,0.3608]
[1738937766733,0.1575,99867.0,99860.0,0.3608]
[1738937767032,0.3576963,99867.0,99860.0,0.3608]
[1738937767239,0.200208,99861.0,99860.0,0.3608]
[1738937767640,0.1575,99867.0,99850.0,0.3618]
[1738937767641,0.2002281,99851.0,99850.0,0.3618]
[1738937767832,0.11604667,99860.0,99850.0,0.3618]
[1738937768034,0.51910001,99867.0,99855.0,0.2002198]
[1738937768233,0.7184969,99867.0,99855.0,0.2002198]
[1738937768439,0.2002033,99864.0,99850.0,0.3618]
[1738937768738,0.51910001,99867.0,99855.0,0.2002194]
[1738937769059,0.51910001,99867.0,99850.0,0.3618]
[1738937769060,0.201208,99861.0,99860.0,0.001]
[1738937769435,0.001,99861.0,99860.0,0.001]
[1738937770040,0.51914,99867.0,99850.0,0.3628]
[1738937770239,0.001,99864.0,99854.0,0.2002211]
[1738937770543,0.001,99864.0,99850.0,0.3628]
[1738937771042,0.001,99864.0,99862.0,0.2002049]
[1738937772040,0.01029981,99870.0,99860.0,0.001]
[1738937772041,0.01029981,99870.0,99861.0,0.3608]
[1738937772241,0.1441,99875.0,99869.0,0.3608]
[1738937772438,0.1441,99875.0,99873.0,0.2001824]
[1738937772744,0.15471918,99875.0,99873.0,0.2001824]
[1738937773245,0.15471918,99875.0,99869.0,0.3608]
[1738937773441,0.15471918,99875.0,99872.0,0.2001842]
[1738937773841,0.15471918,99875.0,99874.0,0.2001819]
[1738937774033,0.01061918,99875.0,99874.0,0.2001819]
[1738937774235,0.001,99875.0,99874.0,0.2001819]
[1738937774642,0.1536,99887.0,99869.0,0.3608]
[1738937774849,0.1536,99887.0,99886.0,0.2001579]
[1738937775045,0.1536,99887.0,99883.0,0.3608]
[1738937776141,0.01048903,99888.0,99885.0,0.2001586]
[1738937776342,0.1542,99889.0,99886.0,0.2001561]
[1738937776641,0.1542,99889.0,99883.0,0.3608]
[1738937776838,0.1542,99889.0,99883.0,0.3618]
[1738937777651,0.16450779,99889.0,99883.0,0.3618]
[1738937778050,0.16450779,99889.0,99886.0,0.001]
[1738937778445,0.496354,99888.0,99886.0,0.001]
[1738937779839,0.496354,99888.0,99886.0,0.002]
[1738937780354,0.496354,99888.0,99886.0,0.001]
[1738937780851,0.496354,99888.0,99886.0,0.002]
[1738937781947,0.20019,99870.0,99869.0,0.34360329]
[1738937782251,0.20019,99870.0,99856.0,0.3608]
[1738937782252,0.200216,99857.0,99856.0,0.3608]
[1738937782447,0.11604667,99870.0,99850.0,0.3608]
[1738937782655,0.2002203,99855.0,99850.0,0.3608]
[1738937783050,0.11604667,99860.0,99850.0,0.3608]
[1738937783347,0.11604667,99860.0,99850.0,0.5610291]
[1738937783551,0.3608,99890.0,99850.0,0.5610291]
[1738937783552,0.0015021,99921.0,99914.0,0.2001002]
[1738937783746,0.2000589,99936.0,99921.0,0.2000876]
[1738937783946,0.05,99950.0,99921.0,0.11604667]
[1738937784148,0.1477,99949.0,99927.0,0.11604667]
[1738937784451,0.2000332,99949.0,99936.0,0.5608577]
[1738937784752,0.09566286,99937.0,99936.0,0.5608577]
[1738937784948,0.09566286,99937.0,99936.0,0.3608]
[1738937785843,0.09566286,99937.0,99936.0,0.3618]
[1738937786040,0.14576286,99948.0,99936.0,0.3618]
[1738937786754,0.15604332,99948.0,99936.0,0.3618]
[1738937786951,0.2000419,99944.0,99936.0,0.3618]
[1738937787145,0.2000419,99944.0,99936.0,0.3628]
[1738937787845,0.15604332,99948.0,99936.0,0.3618]
[1738937788051,0.01028046,99948.0,99947.0,0.3608]
[1738937788252,0.1477,99949.0,99947.0,0.32861984]
[1738937788654,0.1477,99949.0,99947.0,0.31925222]
[1738937788852,0.1583147,99949.0,99947.0,0.31925222]
[1738937789056,0.0106147,99949.0,99947.0,0.31925222]
[1738937789252,0.05,99950.0,99947.0,0.31925222]
[1738937789646,0.06029767,99950.0,99947.0,0.32025222]
[1738937789847,0.2000338,99948.0,99947.0,0.32025222]
[1738937790357,0.2000338,99949.0,99947.0,1e-08]
[1738937790555,0.06029767,99950.0,99936.0,0.3618]
[1738937790755,0.2000479,99941.0,99936.0,0.3608]
[1738937791060,0.2000519,99939.0,99930.0,0.11604667]
[1738937791446,0.2000629,99934.0,99930.0,0.11604667]
[1738937791753,0.2000462,99942.0,99928.0,0.3608]
[1738937791954,0.3608,99945.0,99930.0,0.11604667]
[1738937792153,0.2000487,99941.0,99931.0,0.2000669]
[1738937792461,0.2000445,99943.0,99931.0,0.2000668]
[1738937792654,0.06029767,99950.0,99930.0,0.11704667]
[1738937792956,0.200051,99940.0,99930.0,0.11704667]
[1738937793159,0.06029767,99950.0,99930.0,0.11604667]
[1738937793356,0.3608,99943.0,99930.0,0.11704667]
[1738937793557,0.2000586,99936.0,99930.0,0.11704667]
[1738937794449,0.3608,99935.0,99908.0,0.515]
[1738937794650,0.11604667,99925.0,99898.0,0.3608]
[1738937794951,0.3608,99913.0,99890.0,0.11604667]
[1738937795152,0.2001065,99912.0,99902.0,0.2001254]
[1738937795458,0.3608,99907.0,99894.0,0.3608]
[1738937795655,0.3608,99907.0,99897.0,0.00015012]
[1738937795861,0.2001328,99899.0,99897.0,0.00015012]
[1738937796762,0.3608,99905.0,99897.0,0.00015012]
[1738937796960,0.01073286,99907.0,99897.0,0.00015012]
[1738937797149,0.200132,99899.0,99897.0,0.00015012]
[1738937798061,0.2001821,99874.0,99870.0,0.17208307]
[1738937798361,0.560987,99872.0,99870.0,0.17208307]
[1738937798560,0.560987,99872.0,99870.0,0.12385331]
[1738937798759,0.560987,99872.0,99870.0,0.10111519]
[1738937798959,0.2002215,99855.0,99840.0,0.3608]
[1738937799158,0.3608,99872.0,99840.0,0.3608]
[1738937799159,0.3608,99861.0,99840.0,0.3608]
[1738937799459,0.2001867,99872.0,99870.0,0.001]
[1738937799866,0.01316594,99872.0,99870.0,0.001]
[1738937800061,0.001,99874.0,99871.0,0.3608]
[1738937800268,0.01616594,99874.0,99871.0,0.3608]
[1738937800869,0.002,99872.0,99861.0,0.0001502]
[1738937801059,0.002,99872.0,99841.0,0.3608]
[1738937801060,0.2001995,99866.0,99841.0,0.3608]
[1738937801367,0.37347538,99860.0,99841.0,0.3608]
[1738937801567,0.001,99861.0,99851.0,0.3608]
[1738937801769,0.001,99861.0,99860.0,0.3608]
[1738937802265,0.2001994,99866.0,99861.0,0.001]
[1738937802660,0.2002041,99863.0,99861.0,0.001]
[1738937802867,0.3608,99868.0,99850.0,0.3608]
[1738937803058,0.0001502,99870.0,99855.0,0.3608]
[1738937803369,0.0001502,99870.0,99866.0,0.3608]
[1738937803757,0.2003403,99870.0,99866.0,0.3608]
[1738937804873,0.0041502,99870.0,99866.0,0.3608]
[1738937805268,0.2001947,99868.0,99866.0,0.3608]
[1738937805567,0.0081502,99870.0,99866.0,0.3628]
[1738937805867,0.0081502,99870.0,99869.0,0.200192]
[1738937806275,0.0081502,99870.0,99866.0,0.3628]
[1738937806581,0.2083412,99870.0,99866.0,0.3628]
[1738937806772,0.0081502,99870.0,99866.0,0.3628]
[1738937807173,0.2001951,99868.0,99866.0,0.002]
[1738937807873,0.2031951,99868.0,99866.0,0.002]
[1738937808270,0.2071951,99868.0,99866.0,0.002]
[1738937808962,0.0001502,99870.0,99858.0,0.0001502]
[1738937809164,0.3608,99901.0,99867.0,0.3608]
[1738937809467,0.17326418,99877.0,99867.0,0.3608]
[1738937809859,0.003,99868.0,99867.0,0.3608]
[1738937810064,0.007,99868.0,99867.0,0.3608]
[1738937811379,0.3608,99874.0,99855.0,0.3608]
[1738937811674,0.2002255,99853.0,99846.0,0.34172596]
[1738937811868,0.17326418,99865.0,99846.0,0.34172596]
[1738937812068,0.3608,99855.0,99846.0,0.34172596]
[1738937812579,0.2002293,99851.0,99846.0,0.34172596]
[1738937812768,0.2002253,99853.0,99846.0,0.34172596]
[1738937812969,0.2002276,99852.0,99846.0,0.34172596]
[1738937813171,0.18651114,99865.0,99846.0,0.34172596]
[1738937813370,0.2002144,99858.0,99846.0,0.34172596]
[1738937813564,0.3608,99857.0,99846.0,0.34172596]
[1738937814085,0.2002445,99843.0,99841.0,0.0001502]
[1738937814269,0.62846419,99856.0,99841.0,0.0001502]
[1738937814463,0.2002321,99850.0,99841.0,0.2003978]
[1738937814669,0.2002321,99850.0,99846.0,0.001]
[1738937814871,0.2002356,99848.0,99846.0,0.001]
[1738937815475,0.2002403,99845.0,99841.0,0.0001502]
[1738937815678,0.3608,99849.0,99834.0,0.1633]
[1738937815979,0.2002534,99839.0,99834.0,0.1633]
[1738937816281,0.2002524,99839.0,99834.0,0.1633]
[1738937816474,0.37429495,99849.0,99834.0,0.1633]
[1738937816673,0.37429495,99849.0,99839.0,0.3608]
[1738937817177,0.2002602,99835.0,99832.0,0.0001502]
[1738937817473,0.2002625,99834.0,99832.0,0.0001502]
[1738937818272,0.3608,99840.0,99832.0,0.0001502]
[1738937818675,0.3608,99840.0,99832.0,0.0061502]
[1738937818983,0.2002608,99835.0,99832.0,0.0151502]
[1738937819188,0.3608,99840.0,99832.0,0.0091502]
[1738937819373,0.2012629,99834.0,99832.0,0.0091502]
[1738937819681,0.2012629,99834.0,99832.0,0.0001502]
[1738937820375,0.001,99834.0,99832.0,0.0001502]
[1738937820982,0.2002427,99844.0,99832.0,0.0001502]
[1738937821281,0.0001502,99852.0,99838.0,0.3608]
[1738937821472,0.0001502,99852.0,99851.0,0.561028]
[1738937821875,0.0001502,99852.0,99851.0,0.3608]
[1738937822581,0.2002445,99843.0,99839.0,0.1619]
[1738937823280,0.1556502,99852.0,99850.0,0.2002295]
[1738937823281,0.0001502,99852.0,99850.0,0.2002295]
[1738937823479,0.0001502,99852.0,99851.0,0.3608]
[1738937824484,0.0001502,99852.0,99851.0,0.3628]
[1738937824976,0.2003762,99852.0,99851.0,0.002]
[1738937825176,0.0001502,99852.0,99851.0,0.3608]
[1738937825578,0.0011502,99852.0,99851.0,0.3608]
[1738937826083,0.0001502,99852.0,99851.0,0.3608]
[1738937826277,0.0011502,99852.0,99851.0,0.3628]
[1738937827679,0.0011502,99852.0,99851.0,0.3618]
[1738937827878,0.0001502,99852.0,99851.0,0.3608]
[1738937828181,0.0011502,99852.0,99851.0,0.3618]
[1738937828481,0.0001502,99852.0,99851.0,0.3608]
[1738937828783,0.2013762,99852.0,99851.0,0.3608]
[1738937828974,0.2003762,99852.0,99851.0,0.3608]
[1738937829177,0.3619502,99852.0,99831.0,0.3608]
[1738937829373,0.11562458,99842.0,99837.0,0.2002546]
[1738937829580,0.2002318,99850.0,99839.0,0.3608]
[1738937829581,0.2002361,99847.0,99839.0,0.3608]
[1738937830082,0.200263,99834.0,99831.0,0.3608]
[1738937830387,0.2002363,99847.0,99833.0,0.2002641]
[1738937830587,0.11562458,99843.0,99831.0,0.3608]
[1738937830781,0.2002617,99835.0,99831.0,0.3608]
[1738937831674,0.11562458,99843.0,99831.0,0.3608]
[1738937831874,0.3608,99845.0,99834.0,0.2002608]
[1738937832085,0.11562458,99850.0,99834.0,0.2002608]
[1738937832280,0.001,99835.0,99831.0,0.3608]
[1738937832875,0.2002481,99841.0,99831.0,0.3608]
[1738937833085,0.001,99843.0,99836.0,0.2002573]
[1738937833283,0.001,99843.0,99838.0,0.3608]
[1738937833781,0.001,99843.0,99830.0,0.3608]
[1738937833981,0.11562458,99842.0,99830.0,0.3608]
[1738937834186,0.2002574,99837.0,99830.0,0.3608]
[1738937835081,0.001,99835.0,99830.0,0.3608]
[1738937835288,0.001,99835.0,99834.0,0.2002621]
[1738937835685,0.001,99835.0,99830.0,0.3608]
[1738937835686,0.001,99837.0,99836.0,0.2002581]
[1738937835987,0.001,99837.0,99836.0,0.3608]
[1738937836186,0.42905512,99850.0,99820.0,0.3608]
[1738937836187,0.2002622,99834.0,99820.0,0.3608]
[1738937836487,0.2002622,99834.0,99832.0,0.001]
[1738937837189,0.002,99835.0,99832.0,0.001]
[1738937838292,0.002,99834.0,99832.0,0.001]
[1738937838488,0.002,99834.0,99830.0,0.3608]
[1738937838690,0.002,99834.0,99833.0,0.2002641]
[1738937839194,0.01704984,99835.0,99832.0,0.002]
[1738937839592,0.01704984,99835.0,99834.0,0.2002621]
[1738937839797,0.01504984,99835.0,99834.0,0.2002621]
[1738937840592,0.003,99834.0,99833.0,0.3628]
[1738937840799,0.01334239,99843.0,99833.0,0.3628]
[1738937840995,0.11562458,99860.0,99847.0,0.2002346]
[1738937841292,0.3249,99865.0,99840.0,0.3608]
[1738937841293,0.2002286,99851.0,99840.0,0.3608]
[1738937841491,0.11562458,99850.0,99840.0,0.3608]
[1738937842099,0.2002327,99849.0,99840.0,0.3608]
[1738937842399,0.3515327,99849.0,99840.0,0.3608]
[1738937842786,0.3515327,99849.0,99847.0,0.001]
[1738937843200,0.1513,99849.0,99840.0,0.3618]
[1738937843498,0.16617315,99849.0,99840.0,0.3628]
[1738937843801,0.2002407,99845.0,99840.0,0.3628]
[1738937844297,0.2002407,99845.0,99840.0,0.2631165]
[1738937844487,0.16617315,99849.0,99840.0,0.2631165]
[1738937844689,0.200248,99841.0,99840.0,0.002]
[1738937844890,0.3,99841.0,99812.0,0.3608]
[1738937845091,0.5610915,99820.0,99806.0,0.2003176]
[1738937845288,0.44138781,99840.0,99810.0,0.11562458]
[1738937845495,0.4404278,99840.0,99825.0,0.3608]
[1738937845697,0.2002552,99838.0,99825.0,0.3608]
[1738937846802,0.200266,99833.0,99825.0,0.3608]
[1738937846997,0.44138781,99840.0,99825.0,0.3618]
[1738937847196,0.6406781,99840.0,99825.0,0.3618]
[1738937847396,0.55605238,99840.0,99825.0,0.001]
[1738937847595,0.3608,99832.0,99825.0,0.001]
[1738937847794,0.2002769,99827.0,99825.0,0.002]
[1738937848391,0.2002769,99827.0,99825.0,0.001]
[1738937848599,0.2002769,99827.0,99825.0,0.002]
[1738937848996,0.2002769,99827.0,99825.0,0.001]
[1738937849201,0.002,99827.0,99826.0,0.3608]
[1738937849704,0.003,99827.0,99826.0,0.3608]
[1738937849910,0.003,99827.0,99825.0,0.002]
[1738937850296,0.2032766,99827.0,99825.0,0.002]
[1738937850996,0.21648456,99827.0,99825.0,0.002]
[1738937851202,0.2002889,99821.0,99817.0,0.3598]
[1738937851404,0.52476001,99826.0,99810.0,0.2003101]
[1738937851613,0.2002804,99825.0,99812.0,0.2003051]
[1738937852003,0.2002804,99825.0,99809.0,0.3608]
[1738937852203,0.13083254,99827.0,99811.0,0.2003068]
[1738937852403,0.12883254,99827.0,99820.0,0.3608]
[1738937852599,0.002,99826.0,99820.0,0.3608]
[1738937854201,0.2002805,99825.0,99820.0,0.3608]
[1738937854510,0.002,99826.0,99820.0,0.3608]
[1738937854511,0.2002823,99824.0,99820.0,0.3608]
[1738937854696,0.2002823,99824.0,99816.0,0.200298]
[1738937854903,0.2002849,99823.0,99820.0,0.001]
[1738937855205,0.2002881,99821.0,99820.0,0.001]
[1738937855512,0.2003102,99810.0,99809.0,0.3608]
[1738937855807,0.2003032,99814.0,99809.0,0.3608]
[1738937856408,0.47753487,99819.0,99809.0,0.3608]
[1738937856409,0.11673487,99819.0,99809.0,0.3608]
[1738937856611,0.00015028,99819.0,99818.0,0.3608]
[1738937856903,0.00015028,99819.0,99818.0,0.5610941]
[1738937857107,0.00015028,99819.0,99810.0,0.153]
[1738937858209,0.20044348,99819.0,99810.0,0.35331]
[1738937858606,0.00015028,99819.0,99810.0,0.153]
[1738937858819,0.002,99814.0,99813.0,0.2003042]
[1738937859409,0.00215028,99819.0,99810.0,0.154]
[1738937859609,0.00515028,99819.0,99818.0,0.5610941]
[1738937860001,0.00150322,99840.0,99818.0,0.3608]
[1738937860206,0.00150322,99840.0,99810.0,0.154]
[1738937860207,0.00150322,99840.0,99839.0,0.200252]
[1738937860407,0.00150322,99840.0,99833.0,0.6776639]
[1738937860408,0.2002548,99838.0,99833.0,0.6776639]
[1738937860609,0.200262,99834.0,99833.0,0.4774]
[1738937861309,0.200262,99834.0,99832.0,0.3608]
[1738937861509,0.00150322,99840.0,99824.0,0.00015028]
[1738937861510,0.00150322,99840.0,99824.0,0.36095028]
[1738937861712,0.00150322,99840.0,99824.0,0.00015028]
[1738937862208,0.3608,99841.0,99824.0,0.00015028]
[1738937862412,0.2002705,99830.0,99824.0,0.00015028]
[1738937862803,0.3608,99827.0,99814.0,0.34014348]
[1738937863007,0.3608,99827.0,99820.0,0.2002897]
[1738937863408,0.3608,99827.0,99824.0,0.001]
[1738937864315,0.3608,99827.0,99821.0,0.2002873]
[1738937864514,0.3608,99827.0,99820.0,0.001]
[1738937864818,0.3608,99827.0,99824.0,0.001]
[1738937865518,0.3608,99827.0,99825.0,0.2002781]
[1738937866417,0.3608,99839.0,99832.0,0.200266]
[1738937866624,0.3608,99839.0,99824.0,0.002]
[1738937866625,0.11562458,99850.0,99824.0,0.002]
[1738937866809,0.2002429,99844.0,99825.0,0.2002783]
[1738937867011,0.5610544,99838.0,99829.0,0.200272]
[1738937867212,0.001,99827.0,99825.0,0.001]
[1738937867721,0.001,99827.0,99825.0,0.2012786]
[1738937868112,0.001,99827.0,99825.0,0.2022786]
[1738937868714,0.2012779,99827.0,99825.0,0.002]
[1738937868914,0.21645584,99827.0,99825.0,0.002]
[1738937869121,0.2002781,99826.0,99825.0,0.002]
[1738937869617,0.2002961,99818.0,99803.0,0.3071]
[1738937869920,0.1573,99833.0,99808.0,0.47642458]
[1738937870115,0.00015028,99820.0,99818.0,0.11562458]
[1738937870423,0.00015028,99820.0,99819.0,0.2002921]
[1738937871010,0.01639932,99836.0,99816.0,0.3608]
[1738937871224,0.1647,99852.0,99851.0,0.2002279]
[1738937871516,0.00096001,99857.0,99856.0,0.2002179]
[1738937871718,0.2002127,99859.0,99856.0,0.2002179]
[1738937872116,0.2002002,99865.0,99856.0,0.2002179]
[1738937872325,0.0179813,99858.0,99847.0,0.00015028]
[1738937872523,0.3608,99855.0,99847.0,0.00015028]
[1738937872723,0.2012259,99852.0,99851.0,0.001]
[1738937873428,0.1625,99857.0,99831.0,0.3132]
[1738937873627,0.3608,99836.0,99831.0,0.3132]
[1738937874019,0.200266,99832.0,99831.0,0.3132]
[1738937874220,0.51784001,99836.0,99831.0,0.3132]
[1738937874422,0.5168,99836.0,99831.0,0.3132]
[1738937874925,0.5178,99836.0,99831.0,0.1542]
[1738937875626,0.5178,99836.0,99833.0,0.2002638]
[1738937875925,0.5178,99836.0,99831.0,0.001]
[1738937876232,0.5188,99836.0,99832.0,0.2002661]
[1738937876421,0.158,99836.0,99835.0,0.20026]
[1738937876625,0.002,99836.0,99835.0,0.20026]
[1738937877423,0.01829837,99836.0,99835.0,0.20026]
[1738937877726,0.002,99836.0,99835.0,0.20026]
[1738937878126,0.003,99836.0,99835.0,0.20126]
[1738937878526,0.003,99836.0,99835.0,0.20226]
[1738937879027,0.00015028,99841.0,99835.0,0.20226]
[1738937879028,0.00015028,99841.0,99840.0,0.20025]
[1738937879231,0.20980626,99851.0,99850.0,0.2002299]
[1738937879434,0.20980626,99851.0,99850.0,0.5610299]
[1738937880329,0.01638403,99859.0,99857.0,0.2002159]
[1738937880929,0.01638403,99859.0,99851.0,0.1621]
[1738937881434,0.2002279,99851.0,99850.0,0.001]
[1738937881633,0.2002279,99851.0,99844.0,0.2002403]
[1738937881825,0.2002279,99851.0,99850.0,0.001]
[1738937882923,0.01638403,99859.0,99844.0,0.001]
[1738937883130,0.01638403,99859.0,99857.0,0.3608]
[1738937883344,0.00015028,99860.0,99858.0,0.1674]
[1738937883726,0.0169692,99860.0,99859.0,0.2002119]
[1738937883938,0.00015028,99860.0,99859.0,0.2002119]
[1738937885437,0.00015028,99860.0,99859.0,0.2012119]
[1738937885833,0.1654,99897.0,99859.0,0.001]
[1738937886029,0.5277,99883.0,99882.0,0.2001658]
[1738937886234,0.200171,99880.0,99869.0,0.2001909]
[1738937886544,0.16794001,99883.0,99870.0,0.1554]
[1738937886740,0.1669,99883.0,99878.0,0.2001728]
[1738937886929,0.18348176,99883.0,99871.0,0.2001873]
[1738937887243,0.2001727,99879.0,99875.0,0.2001787]
[1738937887429,0.01658176,99883.0,99870.0,0.1554]
[1738937887635,0.00015019,99886.0,99872.0,0.3608]
[1738937887939,0.00015019,99886.0,99885.0,0.2001598]
[1738937889541,0.00015019,99886.0,99885.0,0.2011598]
[1738937890659,0.00015019,99886.0,99885.0,0.2021598]
[1738937891949,0.00015019,99886.0,99885.0,0.002]
[1738937892457,0.36095019,99886.0,99885.0,0.002]
[1738937892645,0.00015019,99886.0,99885.0,0.002]
[1738937894151,0.00015019,99886.0,99885.0,0.001]
[1738937894350,0.00015019,99886.0,99885.0,0.002]
[1738937897763,0.00015019,99886.0,99885.0,0.001]
[1738937898259,0.00015019,99886.0,99884.0,0.2001607]
[1738937898556,0.20030819,99886.0,99884.0,0.2001607]
[1738937898759,0.00015019,99886.0,99884.0,0.2001607]
[1738937899152,0.2001659,99882.0,99880.0,0.2001691]